fUSD/lending_fUSD_20250108
["ID","MTS","AMOUNT","RATE_DAILY","PERIOD"]
[348091297,1736305857366,-500.0,0.00011366,2]
[348091298,1736305857376,-1560.5,0.00011366,2]
[348091299,1736305857386,-1216.18,0.00011366,2]
[348091300,1736305857396,-3470.32,0.00011367,2]
[348091301,1736305857406,-500.0,0.00011367,2]
[348091302,1736305857416,-718.33,0.00011367,2]
[348091303,1736305857426,-522.93,0.00011367,2]
[348091304,1736305857439,-1039.02,0.00011367,2]
[348091305,1736305857450,-2103.14,0.00011367,2]
[348091306,1736305857460,-760.92,0.00011367,2]
[348091307,1736305857470,-975.82,0.00011367,2]
[348091308,1736305857480,-587.4,0.00011367,2]
[348091309,1736305857491,-1513.87,0.00011367,2]
[348091310,1736305857502,-1071.0,0.00011367,2]
[348091311,1736305857511,-829.04,0.00011367,2]
[348091312,1736305857523,-890.49,0.00011367,2]
[348091313,1736305857533,-500.0,0.00011367,2]
[348091314,1736305857543,-1226.13,0.00011367,2]
[348091315,1736305857554,-544.24,0.00011367,2]
[348091316,1736305857564,-825.8,0.00011367,2]
[348091317,1736305857575,-500.0,0.00011367,2]
[348091318,1736305857586,-500.0,0.00011367,2]
[348091319,1736305857597,-500.0,0.00011367,2]
[348091320,1736305857609,-1421.53,0.00011367,2]
[348091321,1736305857618,-2831.21,0.00011367,2]
[348091322,1736305857628,-621.34,0.00011367,2]
[348091323,1736305857638,-587.6,0.00011367,2]
[348091324,1736305857648,-500.0,0.00011367,2]
[348091325,1736305857658,-663.61,0.00011367,2]
[348091326,1736305857667,-506.81706854,0.00011368,2]
[348091327,1736305857676,-500.0,0.00011368,2]
[348091328,1736305857686,-508.44021105,0.00011368,2]
[348091329,1736305857696,-434.71720472,0.00011368,2]
[348091330,1736305857706,-594.82,0.00011368,2]
[348091331,1736305857716,-492.2757238,0.00011368,2]
[348091332,1736305857727,-513.9007202,0.00011368,2]
[348091333,1736305857737,-500.0,0.00011368,2]
[348091334,1736305857746,-574.07,0.00011368,2]
[348091335,1736305857757,-500.0,0.00011368,2]
[348091336,1736305857766,-499.35637884,0.00011368,2]
[348091337,1736305857776,-500.0,0.00011368,2]
[348091338,1736305857785,-500.0,0.00011368,2]
[348091339,1736305857795,-500.0,0.00011368,2]
[348091340,1736305857805,-500.0,0.00011368,2]
[348091341,1736305857815,-500.0,0.00011368,2]
[348091342,1736305857824,-500.0,0.00011368,2]
[348091343,1736305857834,-500.0,0.00011368,2]
[348091344,1736305857844,-687.5,0.00011368,2]
[348091345,1736305857853,-500.0,0.00011368,2]
[348091346,1736305857867,-500.0,0.00011368,2]
[348091347,1736305857877,-477.92074949,0.00011368,2]
[348091348,1736305857886,-589.94,0.00011368,2]
[348091349,1736305857896,-500.0,0.00011368,2]
[348091350,1736305857905,-500.0,0.00011368,2]
[348091351,1736305857915,-500.0,0.00011368,2]
[348091352,1736305857925,-505.19293099,0.00011368,2]
[348091353,1736305857934,-500.0,0.00011368,2]
[348091354,1736305857944,-500.0,0.00011368,2]
[348091355,1736305857954,-591.34,0.00011368,2]
[348091356,1736305857963,-500.0,0.00011368,2]
[348091357,1736305857973,-500.0,0.00011368,2]
[348091358,1736305857983,-500.0,0.00011368,2]
[348091359,1736305857994,-500.0,0.00011368,2]
[348091360,1736305858004,-500.0,0.00011368,2]
[348091361,1736305858014,-526.6,0.00011368,2]
[348091362,1736305858023,-500.0,0.00011368,2]
[348091363,1736305858033,-500.0,0.00011368,2]
[348091364,1736305858043,-515.58,0.00011368,2]
[348091365,1736305858052,-500.0,0.00011368,2]
[348091366,1736305858062,-508.69447122,0.00011368,2]
[348091367,1736305858072,-500.0,0.00011368,2]
[348091368,1736305858082,-500.0,0.00011368,2]
[348091369,1736305858094,-500.0,0.00011368,2]
[348091370,1736305858103,-500.0,0.00011368,2]
[348091371,1736305858120,-500.0,0.00011368,2]
[348091372,1736305858129,-767.5,0.00011368,2]
[348091373,1736305858139,-241.09567753,0.00011368,2]
[348091374,1736305858149,-500.0,0.00011368,2]
[348091375,1736305858160,-604.26501488,0.00011368,2]
[348091376,1736305858170,-500.0,0.00011368,2]
[348091377,1736305858180,-500.0,0.00011368,2]
[348091378,1736305858190,-509.35626304,0.00011368,2]
[348091379,1736305858199,-315.43870741,0.00011368,2]
[348091380,1736305858209,-194.19210836,0.00011368,2]
[348091381,1736305858219,-500.0,0.00011368,2]
[348091382,1736305858229,-500.0,0.00011368,2]
[348091383,1736305858239,-500.0,0.00011368,2]
[348091384,1736305858249,-500.0,0.00011368,2]
[348091385,1736305858258,-500.0,0.00011368,2]
[348091386,1736305858268,-500.0,0.00011368,2]
[348091387,1736305858278,-500.0,0.00011368,2]
[348091388,1736305858288,-1188.13,0.00011368,2]
[348091389,1736305858298,-500.0,0.00011368,2]
[348091390,1736305858308,-500.0,0.00011368,2]
[348091391,1736305858318,-500.0,0.00011368,2]
[348091392,1736305858328,-500.0,0.00011368,2]
[348091393,1736305858338,-500.0,0.00011368,2]
[348091394,1736305858348,-550.22,0.00011368,2]
[348091395,1736305858361,-880.74,0.00011368,2]
[348091396,1736305858371,-500.0,0.00011368,2]
[348091397,1736305858381,-500.0,0.00011368,2]
[348091398,1736305858391,-500.0,0.00011368,2]
[348091399,1736305858401,-500.0,0.00011368,2]
[348091400,1736305858411,-500.0,0.00011368,2]
[348091401,1736305858420,-500.0,0.00011368,2]
[348091402,1736305858433,-513.66010975,0.00011368,2]
[348091403,1736305858447,-500.0,0.00011368,2]
[348091404,1736305858457,-459.233696,0.00011368,2]
[348091405,1736305858467,-733.92,0.00011368,2]
[348091406,1736305858476,-500.0,0.00011368,2]
[348091407,1736305858487,-500.0,0.00011368,2]
[348091408,1736305858496,-500.0,0.00011368,2]
[348091409,1736305858506,-185.23412863,0.00011368,2]
[348091410,1736305858516,-500.0,0.00011368,2]
[348091411,1736305858526,-500.0,0.00011368,2]
[348091412,1736305858536,-500.0,0.00011368,2]
[348091413,1736305858546,-500.0,0.00011368,2]
[348091414,1736305858556,-500.0,0.00011368,2]
[348091415,1736305858566,-480.844614,0.00011368,2]
[348091416,1736305858575,-500.0,0.00011368,2]
[348091417,1736305858585,-2176.03,0.00011368,2]
[348091418,1736305858595,-508.37923514,0.00011368,2]
[348091419,1736305858605,-500.0,0.00011368,2]
[348091420,1736305858782,-500.0,0.00011368,2]
[348091421,1736305858793,-532.42,0.00011368,2]
[348091422,1736305858803,-500.0,0.00011368,2]
[348091423,1736305858813,-579.14,0.00011368,2]
[348091424,1736305858823,-500.0,0.00011368,2]
[348091425,1736305858833,-500.0,0.00011368,2]
[348091426,1736305858842,-548.73108817,0.00011368,2]
[348091427,1736305858852,-654.16,0.00011368,2]
[348091428,1736305858864,-500.0,0.00011368,2]
[348091429,1736305858874,-500.0,0.00011368,2]
[348091430,1736305858884,-500.0,0.00011368,2]
[348091431,1736305858895,-500.0,0.00011368,2]
[348091432,1736305858905,-500.0,0.00011368,2]
[348091433,1736305858914,-1807.66,0.00011368,2]
[348091434,1736305858924,-500.0,0.00011368,2]
[348091435,1736305858933,-599.07,0.00011368,2]
[348091436,1736305858943,-500.0,0.00011368,2]
[348091437,1736305858953,-500.0,0.00011368,2]
[348091438,1736305858962,-500.0,0.00011368,2]
[348091439,1736305858972,-3905.59,0.00011368,2]
[348091440,1736305858982,-500.0,0.00011368,2]
[348091441,1736305858992,-500.0,0.00011368,2]
[348091442,1736305859002,-409.2574369,0.00011368,2]
[348091443,1736305859012,-589.19,0.00011368,2]
[348091444,1736305859023,-500.0,0.00011368,2]
[348091445,1736305859033,-500.0,0.00011368,2]
[348091446,1736305859043,-512.48128875,0.00011368,2]
[348091447,1736305859053,-265.29978567,0.00011368,2]
[348091448,1736305859063,-500.0,0.00011368,2]
[348091449,1736305859072,-500.0,0.00011368,2]
[348091450,1736305859082,-500.0,0.00011368,2]
[348091451,1736305859091,-1308.03,0.00011368,2]
[348091452,1736305859102,-500.0,0.00011368,2]
[348091453,1736305859114,-500.0,0.00011368,2]
[348091454,1736305859124,-500.0,0.00011368,2]
[348091455,1736305859134,-500.0,0.00011368,2]
[348091456,1736305859144,-500.0,0.00011368,2]
[348091457,1736305859154,-500.0,0.00011368,2]
[348091458,1736305859164,-500.0,0.00011368,2]
[348091459,1736305859174,-500.0,0.00011368,2]
[348091460,1736305859183,-500.0,0.00011368,2]
[348091461,1736305859193,-500.0,0.00011368,2]
[348091462,1736305859203,-255.69518804,0.00011368,2]
[348091463,1736305859213,-500.0,0.00011368,2]
[348091464,1736305859223,-500.0,0.00011368,2]
[348091465,1736305859232,-560.8953607,0.00011368,2]
[348091466,1736305859241,-500.0,0.00011368,2]
[348091467,1736305859251,-524.64,0.00011368,2]
[348091468,1736305859260,-500.0,0.00011368,2]
[348091469,1736305859270,-500.0,0.00011368,2]
[348091470,1736305859280,-500.0,0.00011368,2]
[348091471,1736305859290,-391.54458532,0.00011368,2]
[348091472,1736305859299,-500.0,0.00011368,2]
[348091473,1736305859309,-500.0,0.00011368,2]
[348091474,1736305859319,-500.0,0.00011368,2]
[348091475,1736305859330,-500.0,0.00011368,2]
[348091476,1736305859340,-500.0,0.00011368,2]
[348091477,1736305859350,-500.0,0.00011368,2]
[348091478,1736305859361,-508.50803918,0.00011368,2]
[348091479,1736305859371,-509.02954725,0.00011368,2]
[348091480,1736305859380,-500.0,0.00011368,2]
[348091481,1736305859390,-1356.01,0.00011369,2]
[348091482,1736305859400,-535.11,0.00011369,2]
[348091483,1736305859410,-500.0,0.00011369,2]
[348091484,1736305859419,-745.32,0.00011369,2]
[348091485,1736305859429,-774.59,0.00011369,2]
[348091486,1736305859444,-1703.89,0.00011369,2]
[348091487,1736305859453,-588.19,0.00011369,2]
[348091488,1736305859462,-1704.23,0.00011369,2]
[348091489,1736305859471,-755.37,0.00011369,2]
[348091490,1736305859483,-1250.08,0.00011369,2]
[348091491,1736305859493,-598.12,0.00011369,2]
[348091492,1736305859503,-639.55,0.00011369,2]
[348091493,1736305859514,-741.28,0.00011369,2]
[348091494,1736305859523,-649.34,0.00011369,2]
[348091495,1736305859532,-500.0,0.00011369,2]
[348091496,1736305859542,-1202.3,0.00011369,2]
[348091497,1736305859551,-658.5,0.00011369,2]
[348091498,1736305859560,-500.0,0.00011369,2]
[348091499,1736305859570,-3097.2,0.00011369,2]
[348091500,1736305859579,-500.0,0.00011369,2]
[348091501,1736305859589,-500.0,0.00011369,2]
[348091502,1736305859599,-1259.17,0.00011369,2]
[348091503,1736305859608,-500.0,0.00011369,2]
[348091504,1736305859617,-1363.42,0.00011369,2]
[348091505,1736305859627,-678.21,0.00011369,2]
[348091506,1736305859637,-733.42,0.00011369,2]
[348091507,1736305859646,-500.0,0.00011369,2]
[348091508,1736305859655,-500.0,0.00011369,2]
[348091509,1736305859664,-1663.19,0.00011369,2]
[348091510,1736305859674,-2043.21,0.00011369,2]
[348091511,1736305859683,-500.0,0.00011369,2]
[348091512,1736305859692,-690.93,0.00011369,2]
[348091513,1736305859702,-2131.7,0.00011369,2]
[348091514,1736305859711,-712.04,0.00011369,2]
[348091515,1736305859721,-500.0,0.00011369,2]
[348091516,1736305859730,-500.0,0.00011369,2]
[348091517,1736305859739,-150.0,0.00011379,2]
[348091518,1736305859748,-150.0,0.00011389,2]
[348091519,1736305859757,-800.0,0.000114,4]
[348091520,1736305859766,-2828.30020095,0.00011403,2]
[348091521,1736305859775,-150.0,0.00011416,2]
[348091522,1736305859784,-150.0,0.00011431,2]
[348091523,1736305859794,-1005.67800171,0.00011433,2]
[348091524,1736305859803,-500.0,0.00011442,2]
[348091525,1736305859815,-150.0,0.00011443,2]
[348091526,1736305859824,-150.0,0.00011447,2]
[348091527,1736305859835,-150.0,0.00011453,2]
[348091528,1736305859845,-152.0,0.00011453,15]
[348091529,1736305859856,-7836.36793602,0.00011456,2]
[348091530,1736305859867,-305.74,0.00011479,2]
[348091531,1736305859876,-880.0,0.00011479,2]
[348091532,1736305859885,-248.13,0.00011479,2]
[348091533,1736305859895,-182.91,0.00011479,2]
[348091534,1736305859904,-300.63,0.00011479,2]
[348091535,1736305859914,-356.63,0.00011479,2]
[348091536,1736305859925,-244.26,0.00011479,2]
[348091537,1736305859935,-182.91,0.00011479,2]
[348091538,1736305859945,-182.91,0.00011479,2]
[348091539,1736305859956,-182.91,0.00011479,2]
[348091540,1736305859967,-182.91,0.00011479,2]
[348091541,1736305859976,-200.0,0.0001149,2]
[348091542,1736305859986,-150.0,0.00011492,2]
[348091543,1736305859996,-32316.88860303,0.000115,2]
[348091544,1736305860239,-295.62793326,0.000115,2]
[348091545,1736305860260,-1277.905,0.000115,2]
[348091546,1736305860271,-597.0,0.000115,2]
[348091547,1736305860982,-500.0,0.00010653,2]
[348091548,1736305860991,-511.54953123,0.00010815,2]
[348091549,1736305861003,-591.45046877,0.00010815,2]
[348091550,1736305861012,-854.0747582,0.0001098,2]
[348091551,1736305861022,-1000.0,0.00011201,2]
[348091552,1736305861031,-9526.1436235,0.000115,2]
[348091553,1736305861063,-366.24294284,0.000115,2]
[348091554,1736305861074,-3326.06192741,0.000115,2]
[348091555,1736305861120,-1275.5994093,0.000115,2]
[348091556,1736305861131,-251.10073731,0.000115,2]
[348091557,1736305861143,-432.00902886,0.000115,2]
[348091558,1736305983352,-152.0,0.00011552,16]
[348091559,1736305983385,-152.0,0.0001165,17]
[348091560,1736305983409,-152.0,0.00011748,18]
[348091561,1736305983434,-152.0,0.00011846,19]
[348091562,1736305983471,-152.0,0.00011944,20]
[348091563,1736305983498,-152.0,0.00012042,21]
[348091564,1736305983524,-152.0,0.0001214,22]
[348091565,1736305983558,-152.0,0.00012238,23]
[348091566,1736305983584,-500.0,0.00012299,15]
[348091567,1736305983607,-500.0,0.00012299,16]
[348091568,1736305983630,-500.0,0.000123,14]
[348091569,1736305983851,-500.0,0.00012322,17]
[348091570,1736305983952,-152.0,0.00012336,24]
[348091658,1736307032119,-429.21021427,8e-05,2]
[348091659,1736307032130,-961.21350983,8e-05,2]
[348091660,1736307032141,-832.59214432,8e-05,2]
[348091661,1736307032525,-1822.20507971,8e-05,2]
[348091662,1736307032534,-1289.19,8.219e-05,2]
[348091663,1736307032542,-2500.0,8.917e-05,2]
[348091664,1736307032550,-270.13,9.299e-05,2]
[348091665,1736307032559,-1000.0,9.424e-05,2]
[348091666,1736307032567,-501.99,9.575e-05,2]
[348091667,1736307032576,-250.0,9.641e-05,2]
[348091668,1736307032585,-2500.0,9.798e-05,2]
[348091669,1736307032593,-698.7132,9.898e-05,2]
[348091670,1736307032601,-1468.7089,9.9e-05,2]
[348091671,1736307032610,-500.0,9.973e-05,2]
[348091672,1736307032618,-150.0,9.996e-05,2]
[348091673,1736307032626,-644.2,9.997e-05,2]
[348091674,1736307032635,-500.0,9.997e-05,2]
[348091675,1736307032644,-500.0,9.997e-05,2]
[348091676,1736307032654,-500.0,9.997e-05,2]
[348091677,1736307032664,-500.0,9.997e-05,2]
[348091678,1736307032674,-500.0,9.997e-05,2]
[348091679,1736307032684,-500.0,9.997e-05,2]
[348091680,1736307032693,-500.0,9.997e-05,2]
[348091681,1736307032702,-500.0,9.997e-05,2]
[348091682,1736307032712,-500.0,9.997e-05,2]
[348091683,1736307032721,-500.0,9.997e-05,2]
[348091684,1736307032731,-500.0,9.997e-05,2]
[348091685,1736307032741,-500.0,9.997e-05,2]
[348091686,1736307032750,-500.0,9.997e-05,2]
[348091687,1736307032761,-450.92128167,9.997e-05,2]
[348091688,1736307032770,-500.0,9.997e-05,2]
[348091689,1736307032779,-500.0,9.997e-05,2]
[348091690,1736307032789,-500.0,9.997e-05,2]
[348091691,1736307032798,-500.0,9.997e-05,2]
[348091692,1736307032808,-500.0,9.997e-05,2]
[348091693,1736307032818,-500.0,9.997e-05,2]
[348091694,1736307032827,-500.0,9.997e-05,2]
[348091695,1736307032836,-500.0,9.997e-05,2]
[348091696,1736307032845,-500.0,9.997e-05,2]
[348091697,1736307032854,-500.0,9.997e-05,2]
[348091698,1736307032863,-500.0,9.997e-05,2]
[348091699,1736307032873,-500.0,9.997e-05,2]
[348091700,1736307032883,-500.0,9.997e-05,2]
[348091701,1736307032892,-500.0,9.997e-05,2]
[348091702,1736307032902,-500.0,9.997e-05,2]
[348091703,1736307032911,-500.0,9.997e-05,2]
[348091704,1736307032921,-505.77,9.997e-05,2]
[348091705,1736307032930,-500.0,9.997e-05,2]
[348091706,1736307032942,-563.86,9.997e-05,2]
[348091707,1736307032951,-500.0,9.997e-05,2]
[348091708,1736307032960,-505.63,9.997e-05,2]
[348091709,1736307032970,-500.0,9.997e-05,2]
[348091710,1736307032983,-500.0,9.997e-05,2]
[348091711,1736307032992,-507.89159429,9.997e-05,2]
[348091712,1736307033001,-500.0,9.997e-05,2]
[348091713,1736307033014,-500.0,9.997e-05,2]
[348091714,1736307033023,-500.0,9.997e-05,2]
[348091715,1736307033033,-500.0,9.997e-05,2]
[348091716,1736307033043,-580.41,9.998e-05,2]
[348091717,1736307033052,-1709.75,9.998e-05,2]
[348091718,1736307033069,-500.0,9.998e-05,2]
[348091719,1736307033079,-1346.78,9.998e-05,2]
[348091720,1736307033089,-500.0,9.998e-05,2]
[348091721,1736307033098,-508.33041312,9.998e-05,2]
[348091722,1736307033108,-500.0,9.998e-05,2]
[348091723,1736307033118,-500.0,9.998e-05,2]
[348091724,1736307033128,-1094.83,9.998e-05,2]
[348091725,1736307033139,-500.0,9.998e-05,2]
[348091726,1736307033148,-500.0,9.998e-05,2]
[348091727,1736307033158,-579.82,9.998e-05,2]
[348091728,1736307033167,-602.69,9.998e-05,2]
[348091729,1736307033177,-1340.32,9.998e-05,2]
[348091730,1736307033187,-500.0,9.998e-05,2]
[348091731,1736307033196,-1531.81,9.998e-05,2]
[348091732,1736307033205,-661.92,9.998e-05,2]
[348091733,1736307033215,-1131.08,9.998e-05,2]
[348091734,1736307033225,-591.8,9.998e-05,2]
[348091735,1736307033235,-596.91,9.998e-05,2]
[348091736,1736307033245,-500.0,9.998e-05,2]
[348091737,1736307033254,-500.0,9.998e-05,2]
[348091738,1736307033264,-1154.07,9.998e-05,2]
[348091739,1736307033273,-629.68,9.998e-05,2]
[348091740,1736307033283,-500.0,9.999e-05,2]
[348091741,1736307033292,-500.0,9.999e-05,2]
[348091742,1736307033301,-1615.48,9.999e-05,2]
[348091743,1736307033311,-500.0,9.999e-05,2]
[348091744,1736307033320,-523.61,9.999e-05,2]
[348091745,1736307033330,-712.95,9.999e-05,2]
[348091746,1736307033339,-577.06,9.999e-05,2]
[348091747,1736307033348,-857.33,9.999e-05,2]
[348091748,1736307033358,-184.70847154,9.999e-05,2]
[348091749,1736307033367,-565.44,9.999e-05,2]
[348091750,1736307033377,-500.0,9.999e-05,2]
[348091751,1736307033387,-1281.66,9.999e-05,2]
[348091752,1736307033396,-865.29,9.999e-05,2]
[348091753,1736307033406,-500.0,9.999e-05,2]
[348091754,1736307033415,-500.0,9.999e-05,2]
[348091755,1736307033424,-500.0,9.999e-05,2]
[348091756,1736307033434,-500.0,9.999e-05,2]
[348091757,1736307033444,-526.29042268,9.999e-05,2]
[348091758,1736307033454,-763.72,9.999e-05,2]
[348091759,1736307033464,-500.0,9.999e-05,2]
[348091760,1736307033474,-1103.29,9.999e-05,2]
[348091761,1736307033484,-1171.69,9.999e-05,2]
[348091762,1736307033494,-500.0,9.999e-05,2]
[348091763,1736307033504,-642.61,9.999e-05,2]
[348091764,1736307033514,-500.0,9.999e-05,2]
[348091765,1736307033525,-2465.35,9.999e-05,2]
[348091766,1736307033535,-953.38,9.999e-05,2]
[348091767,1736307033545,-627.45,9.999e-05,2]
[348091768,1736307033555,-500.0,9.999e-05,2]
[348091769,1736307033566,-513.72818307,9.999e-05,2]
[348091770,1736307033576,-509.77503998,9.999e-05,2]
[348091771,1736307033586,-500.0,9.999e-05,2]
[348091772,1736307033596,-440.07771978,9.999e-05,4]
[348091773,1736307033606,-500.0,9.999e-05,2]
[348091774,1736307033615,-500.0,9.999e-05,2]
[348091775,1736307033625,-640.18,9.999e-05,2]
[348091776,1736307033635,-644.21,9.999e-05,2]
[348091777,1736307033645,-500.0,9.999e-05,2]
[348091778,1736307033654,-500.0,9.999e-05,2]
[348091779,1736307033664,-500.0,9.999e-05,2]
[348091780,1736307033674,-1092.19,9.999e-05,2]
[348091781,1736307033683,-500.0,9.999e-05,2]
[348091782,1736307033693,-261641.06751703,0.0001,2]
[348091783,1736307033707,-1596.5603032,0.0001,2]
[348091784,1736307037896,-500.0,9.999e-05,2]
[348091785,1736307037906,-709.22,9.999e-05,2]
[348091786,1736307037915,-101943.8638849,0.0001,2]
[348091787,1736307037927,-828490.24558499,0.0001,2]
[348091788,1736307037937,-172.17,0.0001,2]
[348091789,1736307037947,-1328108.62906211,0.0001,2]
[348091790,1736307037956,-195.2,0.00010137,2]
[348091791,1736307037965,-870.1311,0.00010172,2]
[348091792,1736307037976,-3201.0931,0.00010173,2]
[348091793,1736307037987,-500.0,0.00010271,2]
[348091794,1736307037996,-500.0,0.00010271,2]
[348091795,1736307038005,-500.0,0.00010271,2]
[348091796,1736307038016,-487.95052733,0.00010271,2]
[348091797,1736307038026,-500.0,0.00010271,2]
[348091798,1736307038035,-508.87189332,0.00010271,2]
[348091799,1736307038044,-500.0,0.00010271,2]
[348091800,1736307038054,-500.0,0.00010271,2]
[348091801,1736307038063,-500.0,0.00010271,2]
[348091802,1736307038072,-540.19,0.00010271,2]
[348091803,1736307038081,-500.0,0.00010271,2]
[348091804,1736307038091,-500.0,0.00010271,2]
[348091805,1736307038103,-500.0,0.00010271,2]
[348091806,1736307038112,-500.0,0.00010271,2]
[348091807,1736307038121,-500.0,0.00010271,2]
[348091808,1736307038131,-644.52,0.00010271,2]
[348091809,1736307038140,-500.0,0.00010271,2]
[348091810,1736307038149,-500.0,0.00010271,2]
[348091811,1736307038158,-500.0,0.00010271,2]
[348091812,1736307038167,-500.0,0.00010271,2]
[348091813,1736307038177,-500.0,0.00010271,2]
[348091814,1736307038187,-505.77,0.00010271,2]
[348091815,1736307038197,-500.0,0.00010271,2]
[348091816,1736307038207,-563.86,0.00010271,2]
[348091817,1736307038216,-500.0,0.00010271,2]
[348091818,1736307038226,-505.63,0.00010271,2]
[348091819,1736307038235,-500.0,0.00010271,2]
[348091820,1736307038244,-648.56,0.00010271,2]
[348091821,1736307038254,-500.0,0.00010271,2]
[348091822,1736307038263,-500.0,0.00010271,2]
[348091823,1736307038271,-500.0,0.00010271,2]
[348091824,1736307038281,-580.41,0.00010272,2]
[348091825,1736307038290,-1709.75,0.00010272,2]
[348091826,1736307038299,-1346.78,0.00010272,2]
[348091827,1736307038308,-1094.83,0.00010272,2]
[348091828,1736307038318,-500.0,0.00010272,2]
[348091829,1736307038328,-500.0,0.00010272,2]
[348091830,1736307038338,-500.0,0.00010272,2]
[348091831,1736307038348,-500.0,0.00010272,2]
[348091832,1736307038357,-500.0,0.00010272,2]
[348091833,1736307038367,-500.0,0.00010272,2]
[348091834,1736307038377,-500.0,0.00010272,2]
[348091835,1736307038386,-500.0,0.00010272,2]
[348091836,1736307038395,-500.0,0.00010272,2]
[348091837,1736307038404,-500.0,0.00010272,2]
[348091838,1736307038413,-579.82,0.00010272,2]
[348091839,1736307038422,-500.0,0.00010272,2]
[348091840,1736307038431,-500.0,0.00010272,2]
[348091841,1736307038440,-602.69,0.00010272,2]
[348091842,1736307038450,-500.0,0.00010272,2]
[348091843,1736307038459,-500.0,0.00010272,2]
[348091844,1736307038468,-500.0,0.00010272,2]
[348091845,1736307038477,-500.0,0.00010272,2]
[348091846,1736307038486,-500.0,0.00010272,2]
[348091847,1736307038495,-500.0,0.00010272,2]
[348091848,1736307038504,-500.0,0.00010272,2]
[348091849,1736307038515,-1340.32,0.00010272,2]
[348091850,1736307038524,-500.0,0.00010272,2]
[348091851,1736307038534,-219.516912,0.00010272,2]
[348091852,1736307038544,-500.0,0.00010272,2]
[348091853,1736307038553,-500.0,0.00010272,2]
[348091854,1736307038562,-500.0,0.00010272,2]
[348091855,1736307038571,-500.0,0.00010272,2]
[348091856,1736307038581,-500.0,0.00010272,2]
[348091857,1736307038590,-500.0,0.00010272,2]
[348091858,1736307038599,-500.0,0.00010272,2]
[348091859,1736307038609,-509.89557951,0.00010272,2]
[348091860,1736307038618,-500.0,0.00010272,2]
[348091861,1736307038628,-500.0,0.00010272,2]
[348091862,1736307038637,-500.0,0.00010272,2]
[348091863,1736307038646,-500.0,0.00010272,2]
[348091864,1736307038655,-500.0,0.00010272,2]
[348091865,1736307038664,-500.0,0.00010272,2]
[348091866,1736307038673,-500.0,0.00010272,2]
[348091867,1736307038683,-1531.81,0.00010272,2]
[348091868,1736307038692,-506.35816096,0.00010272,2]
[348091869,1736307038701,-500.0,0.00010272,2]
[348091870,1736307038710,-500.0,0.00010272,2]
[348091871,1736307038719,-500.0,0.00010272,2]
[348091873,1736307038728,-500.0,0.00010272,2]
[348091874,1736307038738,-500.0,0.00010272,2]
[348091875,1736307038747,-661.92,0.00010272,2]
[348091876,1736307038756,-500.0,0.00010272,2]
[348091877,1736307038766,-500.0,0.00010272,2]
[348091878,1736307038774,-500.0,0.00010272,2]
[348091879,1736307038783,-500.0,0.00010272,2]
[348091880,1736307038792,-500.0,0.00010272,2]
[348091881,1736307038801,-1131.08,0.00010272,2]
[348091882,1736307038810,-500.0,0.00010272,2]
[348091883,1736307038819,-500.0,0.00010272,2]
[348091884,1736307038828,-500.0,0.00010272,2]